[Event "Early-Titled-Tuesday-Blitz-March-12-2024"]
[Site "Chess.com"]
[Date "2024.03.12"]
[Round "1"]
[White "Zheenbekov86"]
[Black "yuriy88"]
[Result "1-0"]
[WhiteElo "2442"]
[BlackElo "2769"]
[TimeControl "180+1"]
[EndTime "8:05:21 PDT"]
[Termination "Zheenbekov86 won on time"]

1. Nf3 {[%clk 0:02:57.4]} 1... Nf6 {[%clk 0:02:59.4]} 2. g3 {[%clk 0:02:56.6]}
2... g6 {[%clk 0:02:58.9]} 3. Bg2 {[%clk 0:02:56.6]} 3... Bg7 {[%clk 0:02:59.7]}
4. O-O {[%clk 0:02:56.3]} 4... O-O {[%clk 0:03:00.6]} 5. d4 {[%clk 0:02:56.4]}
5... d6 {[%clk 0:03:01.5]} 6. c4 {[%clk 0:02:55.6]} 6... Nc6 {[%clk 0:02:59.7]}
7. Nc3 {[%clk 0:02:51.8]} 7... a6 {[%clk 0:02:59.2]} 8. d5 {[%clk 0:02:34]} 8...
Na5 {[%clk 0:02:57.5]} 9. Qd3 {[%clk 0:02:33.5]} 9... c5 {[%clk 0:02:52.8]} 10.
e4 {[%clk 0:02:27.8]} 10... b5 {[%clk 0:02:44.7]} 11. cxb5 {[%clk 0:02:16.8]}
11... axb5 {[%clk 0:02:30.2]} 12. Nxb5 {[%clk 0:02:16.4]} 12... Ba6 {[%clk
0:02:05.9]} 13. a4 {[%clk 0:02:15.5]} 13... Qb6 {[%clk 0:02:02.5]} 14. e5 {[%clk
0:01:55.6]} 14... Nd7 {[%clk 0:01:58.2]} 15. exd6 {[%clk 0:01:49.5]} 15... exd6
{[%clk 0:01:57.4]} 16. Bf4 {[%clk 0:01:45.2]} 16... c4 {[%clk 0:01:45.2]} 17.
Qc2 {[%clk 0:01:35.4]} 1-0

[Event "Early-Titled-Tuesday-Blitz-March-12-2024"]
[Site "Chess.com"]
[Date "2024.03.12"]
[Round "1"]
[White "Tash_Boy"]
[Black "GAO"]
[Result "1-0"]
[WhiteElo "2694"]
[BlackElo "2313"]
[TimeControl "180+1"]
[EndTime "8:05:30 PDT"]
[Termination "Tash_Boy won by resignation"]

1. e4 {[%clk 0:03:00.1]} 1... c5 {[%clk 0:02:57.4]} 2. Nf3 {[%clk 0:02:57.1]}
2... Nc6 {[%clk 0:02:57.5]} 3. d4 {[%clk 0:02:54.7]} 3... cxd4 {[%clk
0:02:58.4]} 4. Nxd4 {[%clk 0:02:54.2]} 4... g6 {[%clk 0:02:57.8]} 5. c4 {[%clk
0:02:53.5]} 5... Bg7 {[%clk 0:02:57.5]} 6. Be3 {[%clk 0:02:53]} 6... Qb6 {[%clk
0:02:58]} 7. Nb3 {[%clk 0:02:48.5]} 7... Qd8 {[%clk 0:02:57.7]} 8. Nc3 {[%clk
0:02:47.9]} 8... Bxc3+ {[%clk 0:02:56.2]} 9. bxc3 {[%clk 0:02:48.8]} 9... Nf6
{[%clk 0:02:55.6]} 10. f3 {[%clk 0:02:43.7]} 10... O-O {[%clk 0:02:55.8]} 11.
Be2 {[%clk 0:02:40.1]} 11... d6 {[%clk 0:02:56.1]} 12. O-O {[%clk 0:02:39.4]}
12... Be6 {[%clk 0:02:56.4]} 13. Nd4 {[%clk 0:02:30.3]} 13... a6 {[%clk
0:02:47.2]} 14. c5 {[%clk 0:02:20.9]} 14... d5 {[%clk 0:02:44.1]} 15. Nxe6
{[%clk 0:02:16.5]} 15... fxe6 {[%clk 0:02:42.8]} 16. Qb3 {[%clk 0:02:13.2]}
16... Qc7 {[%clk 0:02:27]} 17. Rab1 {[%clk 0:02:10.3]} 17... Rab8 {[%clk
0:02:24.1]} 18. Rfd1 {[%clk 0:01:51.1]} 18... Na5 {[%clk 0:02:14.7]} 19. Qb6
{[%clk 0:01:49.3]} 19... Qxb6 {[%clk 0:02:11.4]} 20. Rxb6 {[%clk 0:01:50.2]}
20... Nc6 {[%clk 0:02:05.5]} 21. Bxa6 {[%clk 0:01:38.3]} 21... bxa6 {[%clk
0:02:02.4]} 22. Rxc6 {[%clk 0:01:38.3]} 22... Rb2 {[%clk 0:01:39.9]} 23. Rxe6
{[%clk 0:01:32.6]} 23... dxe4 {[%clk 0:01:39]} 24. Rxe7 {[%clk 0:01:28]} 24...
exf3 {[%clk 0:01:34.8]} 25. gxf3 {[%clk 0:01:28.9]} 25... Rxa2 {[%clk
0:01:09.4]} 26. c6 {[%clk 0:01:26.1]} 26... Rc2 {[%clk 0:01:09.4]} 27. c7 {[%clk
0:01:19.3]} 27... Rxc3 {[%clk 0:01:09.1]} 28. Rd8 {[%clk 0:01:19.6]} 28... a5
{[%clk 0:00:41.2]} 29. Bh6 {[%clk 0:01:17.9]} 29... Nd7 {[%clk 0:00:34.1]} 30.
Rexd7 {[%clk 0:01:15.6]} 30... Rxf3 {[%clk 0:00:32.2]} 1-0

[Event "Early-Titled-Tuesday-Blitz-March-12-2024"]
[Site "Chess.com"]
[Date "2024.03.12"]
[Round "1"]
[White "eagleclaw07"]
[Black "Al_Shima"]
[Result "1-0"]
[WhiteElo "2788"]
[BlackElo "2439"]
[TimeControl "180+1"]
[EndTime "8:05:31 PDT"]
[Termination "eagleclaw07 won by resignation"]

1. d4 {[%clk 0:03:00.9]} 1... Nf6 {[%clk 0:02:59.9]} 2. c4 {[%clk 0:03:01.5]}
2... e6 {[%clk 0:03:00.2]} 3. Nc3 {[%clk 0:03:01.6]} 3... d5 {[%clk 0:03:00.2]}
4. cxd5 {[%clk 0:03:02.5]} 4... Nxd5 {[%clk 0:02:59.7]} 5. e4 {[%clk 0:03:02.5]}
5... Nxc3 {[%clk 0:03:00.1]} 6. bxc3 {[%clk 0:03:03.4]} 6... c5 {[%clk
0:03:00.3]} 7. Nf3 {[%clk 0:03:03.9]} 7... cxd4 {[%clk 0:03:00.6]} 8. cxd4
{[%clk 0:03:04.8]} 8... Bb4+ {[%clk 0:03:01.3]} 9. Bd2 {[%clk 0:03:05.3]} 9...
Bxd2+ {[%clk 0:03:01.9]} 10. Qxd2 {[%clk 0:03:06.1]} 10... O-O {[%clk
0:03:02.2]} 11. Bd3 {[%clk 0:03:06.4]} 11... b6 {[%clk 0:03:02.7]} 12. O-O
{[%clk 0:03:06.8]} 12... Bb7 {[%clk 0:03:03.3]} 13. Rad1 {[%clk 0:03:05.6]}
13... Nc6 {[%clk 0:03:03.5]} 14. Bb1 {[%clk 0:03:00.3]} 14... Rc8 {[%clk
0:02:56.3]} 15. h4 {[%clk 0:02:55.4]} 15... h6 {[%clk 0:02:55]} 16. d5 {[%clk
0:02:44.2]} 16... exd5 {[%clk 0:02:53.8]} 17. exd5 {[%clk 0:02:45.1]} 17... Na5
{[%clk 0:02:54]} 18. Qd3 {[%clk 0:02:42.4]} 18... f5 {[%clk 0:02:50.2]} 19. Rfe1
{[%clk 0:02:29.6]} 19... Nc4 {[%clk 0:02:45.7]} 20. Qb3 {[%clk 0:01:51.4]} 20...
Bxd5 {[%clk 0:01:53.3]} 21. Ne5 {[%clk 0:01:29.8]} 21... Rc5 {[%clk 0:01:03.8]}
22. Nxc4 {[%clk 0:01:21.7]} 22... Rxc4 {[%clk 0:01:04.7]} 23. Re5 {[%clk
0:01:19.5]} 23... Rd4 {[%clk 0:00:54]} 24. Rxd5 {[%clk 0:01:10.7]} 24... Qxd5
{[%clk 0:00:42.9]} 25. Qxd5+ {[%clk 0:01:09.2]} 25... Rxd5 {[%clk 0:00:43.2]}
26. Rxd5 {[%clk 0:01:10]} 26... g6 {[%clk 0:00:42.9]} 27. h5 {[%clk 0:01:04.8]}
27... Kg7 {[%clk 0:00:41.5]} 1-0

[Event "Early-Titled-Tuesday-Blitz-March-12-2024"]
[Site "Chess.com"]
[Date "2024.03.12"]
[Round "1"]
[White "Mops_2004"]
[Black "Road2GM3000"]
[Result "0-1"]
[WhiteElo "2833"]
[BlackElo "2484"]
[TimeControl "180+1"]
[EndTime "8:05:32 PDT"]
[Termination "Road2GM3000 won by resignation"]

1. g3 {[%clk 0:03:00.9]} 1... d5 {[%clk 0:02:49.9]} 2. Nf3 {[%clk 0:03:00.7]}
2... Nf6 {[%clk 0:02:49.6]} 3. Bg2 {[%clk 0:03:00.9]} 3... c6 {[%clk 0:02:49.6]}
4. O-O {[%clk 0:03:01]} 4... Bg4 {[%clk 0:02:50.2]} 5. h3 {[%clk 0:03:00.9]}
5... Bxf3 {[%clk 0:02:50]} 6. Bxf3 {[%clk 0:03:01.8]} 6... e6 {[%clk 0:02:50.4]}
7. d3 {[%clk 0:02:57.6]} 7... Nbd7 {[%clk 0:02:50.8]} 8. Bg2 {[%clk 0:02:57.7]}
8... Be7 {[%clk 0:02:50.8]} 9. e4 {[%clk 0:02:57.9]} 9... O-O {[%clk 0:02:50.9]}
10. Qe2 {[%clk 0:02:58.1]} 10... Ne8 {[%clk 0:02:31.5]} 11. Nc3 {[%clk
0:02:41.5]} 11... d4 {[%clk 0:02:17.4]} 12. Nd1 {[%clk 0:02:41.2]} 12... c5
{[%clk 0:02:12.2]} 13. e5 {[%clk 0:02:38.5]} 13... Rb8 {[%clk 0:02:09.8]} 14. a4
{[%clk 0:02:32.9]} 14... Nc7 {[%clk 0:02:08.4]} 15. f4 {[%clk 0:02:23]} 15...
Nd5 {[%clk 0:02:05.7]} 16. f5 {[%clk 0:02:14.4]} 16... Qc7 {[%clk 0:01:55]} 17.
f6 {[%clk 0:01:55.9]} 17... gxf6 {[%clk 0:01:47.4]} 18. Bh6 {[%clk 0:01:51.6]}
18... f5 {[%clk 0:01:42.4]} 19. Bxd5 {[%clk 0:01:44.7]} 19... exd5 {[%clk
0:01:40.4]} 20. Rxf5 {[%clk 0:01:44.7]} 20... Kh8 {[%clk 0:01:29]} 21. Bxf8
{[%clk 0:01:44.4]} 21... Rxf8 {[%clk 0:01:27.6]} 22. Nf2 {[%clk 0:01:43.6]}
22... Rg8 {[%clk 0:01:24.5]} 23. Kh2 {[%clk 0:01:33.8]} 23... f6 {[%clk
0:01:24.7]} 24. Ng4 {[%clk 0:01:25.4]} 24... fxe5 {[%clk 0:01:08.1]} 25. Nxe5
{[%clk 0:01:12]} 25... Rg7 {[%clk 0:00:34.4]} 26. Nf7+ {[%clk 0:01:06.9]} 26...
Kg8 {[%clk 0:00:34.4]} 27. Qxe7 {[%clk 0:01:06]} 27... Qxg3+ {[%clk 0:00:34]}
0-1

[Event "Early-Titled-Tuesday-Blitz-March-12-2024"]
[Site "Chess.com"]
[Date "2024.03.12"]
[Round "1"]
[White "mitrabhaa"]
[Black "kamilianin235"]
[Result "1-0"]
[WhiteElo "2941"]
[BlackElo "2529"]
[TimeControl "180+1"]
[EndTime "8:05:33 PDT"]
[Termination "mitrabhaa won by resignation"]

1. Nf3 {[%clk 0:02:59.4]} 1... d5 {[%clk 0:02:57.7]} 2. d4 {[%clk 0:02:59.9]}
2... Nf6 {[%clk 0:02:57.3]} 3. Bf4 {[%clk 0:03:00.5]} 3... c5 {[%clk 0:02:56.7]}
4. e3 {[%clk 0:03:01.1]} 4... Nc6 {[%clk 0:02:57.1]} 5. Nbd2 {[%clk 0:03:01.4]}
5... e6 {[%clk 0:02:51.8]} 6. c3 {[%clk 0:03:01.6]} 6... Bd6 {[%clk 0:02:33.4]}
7. Ne5 {[%clk 0:03:00.1]} 7... Bxe5 {[%clk 0:02:32.8]} 8. dxe5 {[%clk
0:03:00.4]} 8... Nd7 {[%clk 0:02:33]} 9. Nf3 {[%clk 0:03:01]} 9... Qc7 {[%clk
0:02:32.4]} 10. Bd3 {[%clk 0:02:51.8]} 10... h6 {[%clk 0:02:21.1]} 11. O-O
{[%clk 0:02:48.8]} 11... c4 {[%clk 0:02:13.3]} 12. Bb1 {[%clk 0:02:46.4]} 12...
b5 {[%clk 0:02:12.6]} 13. a4 {[%clk 0:02:39.5]} 13... b4 {[%clk 0:02:09.2]} 14.
Nd4 {[%clk 0:02:38.1]} 14... bxc3 {[%clk 0:01:32.6]} 15. bxc3 {[%clk 0:02:38]}
15... Ncxe5 {[%clk 0:01:31.5]} 16. Qh5 {[%clk 0:02:37.5]} 16... Ke7 {[%clk
0:01:22.7]} 17. e4 {[%clk 0:02:30.7]} 17... Bb7 {[%clk 0:01:20.8]} 18. exd5
{[%clk 0:02:29.9]} 18... Bxd5 {[%clk 0:01:19.3]} 19. Re1 {[%clk 0:02:30.5]}
19... g5 {[%clk 0:01:19.1]} 20. Bg3 {[%clk 0:02:26.9]} 20... Qb7 {[%clk
0:01:16.4]} 21. Qe2 {[%clk 0:02:11.3]} 21... f6 {[%clk 0:01:04.9]} 22. f3 {[%clk
0:02:10.3]} 22... Kf7 {[%clk 0:01:03.5]} 23. Bc2 {[%clk 0:02:09.6]} 23... Rac8
{[%clk 0:00:53]} 24. Rab1 {[%clk 0:02:07.1]} 24... Qa6 {[%clk 0:00:53]} 25. f4
{[%clk 0:02:04.8]} 25... Nd3 {[%clk 0:00:47.5]} 26. Rf1 {[%clk 0:01:59.4]} 26...
Kg7 {[%clk 0:00:41.5]} 27. Qh5 {[%clk 0:01:51.2]} 27... N7c5 {[%clk 0:00:35.2]}
28. f5 {[%clk 0:01:48.4]} 28... e5 {[%clk 0:00:34.4]} 29. Qg6+ {[%clk
0:01:44.2]} 29... Kf8 {[%clk 0:00:33.3]} 30. Ne6+ {[%clk 0:01:44.8]} 30... Ke7
{[%clk 0:00:29]} 31. Qg7+ {[%clk 0:01:40.7]} 31... Kd6 {[%clk 0:00:29.1]} 32.
Qxf6 {[%clk 0:01:41.2]} 32... Nxe6 {[%clk 0:00:23.8]} 33. Bxd3 {[%clk
0:01:38.6]} 1-0

[Event "Early-Titled-Tuesday-Blitz-March-12-2024"]
[Site "Chess.com"]
[Date "2024.03.12"]
[Round "1"]
[White "dianamirza"]
[Black "Statham_01"]
[Result "0-1"]
[WhiteElo "2008"]
[BlackElo "2586"]
[TimeControl "180+1"]
[EndTime "8:05:33 PDT"]
[Termination "Statham_01 won by checkmate"]

1. e4 {[%clk 0:03:00.4]} 1... e5 {[%clk 0:02:58.3]} 2. Nf3 {[%clk 0:02:38.5]}
2... Nc6 {[%clk 0:02:57.7]} 3. Bb5 {[%clk 0:02:34.5]} 3... Bb4 {[%clk
0:02:56.4]} 4. Bxc6 {[%clk 0:02:32.8]} 4... dxc6 {[%clk 0:02:56.1]} 5. O-O
{[%clk 0:02:33.7]} 5... Bg4 {[%clk 0:02:54.9]} 6. a3 {[%clk 0:02:32.7]} 6... Bd6
{[%clk 0:02:54.5]} 7. h3 {[%clk 0:02:30.4]} 7... Bh5 {[%clk 0:02:54.5]} 8. Nc3
{[%clk 0:02:29.9]} 8... Ne7 {[%clk 0:02:52.7]} 9. Qe2 {[%clk 0:02:29.9]} 9...
Qd7 {[%clk 0:02:51.4]} 10. d3 {[%clk 0:02:30.3]} 10... h6 {[%clk 0:02:50.1]} 11.
Be3 {[%clk 0:02:30.7]} 11... c5 {[%clk 0:02:41.5]} 12. Nd5 {[%clk 0:02:28.7]}
12... Nxd5 {[%clk 0:02:35.1]} 13. exd5 {[%clk 0:02:28.2]} 13... O-O {[%clk
0:02:34.3]} 14. Nxe5 {[%clk 0:02:22.2]} 14... Qf5 {[%clk 0:02:01.5]} 15. Nf3
{[%clk 0:01:41.9]} 15... Qxd5 {[%clk 0:02:00.7]} 16. Rae1 {[%clk 0:01:14.5]}
16... Rae8 {[%clk 0:01:59.7]} 17. g4 {[%clk 0:01:11.6]} 17... Bg6 {[%clk
0:01:55.2]} 18. Nh4 {[%clk 0:01:10.7]} 18... Bh7 {[%clk 0:01:44.8]} 19. Qf3
{[%clk 0:01:01.4]} 19... Qe5 {[%clk 0:01:38.8]} 20. Qg2 {[%clk 0:00:47.7]} 20...
Qxb2 {[%clk 0:01:36.9]} 21. Nf5 {[%clk 0:00:45.5]} 21... Bxf5 {[%clk 0:01:34.8]}
22. gxf5 {[%clk 0:00:46.4]} 22... Qf6 {[%clk 0:01:34.9]} 23. Qg4 {[%clk
0:00:44.1]} 23... Re5 {[%clk 0:01:33]} 24. Bf4 {[%clk 0:00:35.4]} 24... Rxf5
{[%clk 0:01:32.5]} 25. Bxd6 {[%clk 0:00:35.3]} 25... cxd6 {[%clk 0:01:22.1]} 26.
Kh2 {[%clk 0:00:33.5]} 26... Rg5 {[%clk 0:01:19.5]} 27. Qd7 {[%clk 0:00:27.8]}
27... Qf4+ {[%clk 0:01:18.8]} 28. Kh1 {[%clk 0:00:28]} 28... Qf3+ {[%clk
0:01:18.8]} 29. Kh2 {[%clk 0:00:28.1]} 29... Qg2# {[%clk 0:01:18.8]} 0-1

[Event "Early-Titled-Tuesday-Blitz-March-12-2024"]
[Site "Chess.com"]
[Date "2024.03.12"]
[Round "1"]
[White "Hikaru"]
[Black "VinzentSpitzl"]
[Result "1-0"]
[WhiteElo "3215"]
[BlackElo "2573"]
[TimeControl "180+1"]
[EndTime "8:05:42 PDT"]
[Termination "Hikaru won by checkmate"]

1. Nf3 {[%clk 0:02:58.6]} 1... d5 {[%clk 0:02:59.3]} 2. b3 {[%clk 0:02:58.5]}
2... Nf6 {[%clk 0:02:58.4]} 3. c4 {[%clk 0:02:57.9]} 3... e6 {[%clk 0:02:56.2]}
4. Bb2 {[%clk 0:02:55.4]} 4... Be7 {[%clk 0:02:56.2]} 5. e3 {[%clk 0:02:55]}
5... O-O {[%clk 0:02:55.5]} 6. d4 {[%clk 0:02:55.7]} 6... b6 {[%clk 0:02:54.1]}
7. cxd5 {[%clk 0:02:55.7]} 7... exd5 {[%clk 0:02:52.9]} 8. Bd3 {[%clk
0:02:55.3]} 8... Ba6 {[%clk 0:02:50.6]} 9. Bxa6 {[%clk 0:02:49.4]} 9... Nxa6
{[%clk 0:02:50.6]} 10. O-O {[%clk 0:02:49.9]} 10... c5 {[%clk 0:02:49]} 11. dxc5
{[%clk 0:02:50.5]} 11... bxc5 {[%clk 0:02:47.1]} 12. Nc3 {[%clk 0:02:50.1]}
12... Rb8 {[%clk 0:02:42.2]} 13. Na4 {[%clk 0:02:47.1]} 13... Qd7 {[%clk
0:02:05.5]} 14. Qe2 {[%clk 0:02:37]} 14... Nb4 {[%clk 0:02:00.3]} 15. a3 {[%clk
0:02:19]} 15... Nc6 {[%clk 0:01:58.9]} 16. Bxf6 {[%clk 0:02:19.1]} 16... gxf6
{[%clk 0:01:27.1]} 17. Rac1 {[%clk 0:02:07.1]} 17... Rxb3 {[%clk 0:00:57.9]} 18.
Nxc5 {[%clk 0:02:06.5]} 18... Bxc5 {[%clk 0:00:57.7]} 19. Rxc5 {[%clk
0:02:07.4]} 19... Rxa3 {[%clk 0:00:55.8]} 20. Qb2 {[%clk 0:02:06.5]} 20... Ra5
{[%clk 0:00:44.2]} 21. Rxa5 {[%clk 0:01:50.5]} 21... Nxa5 {[%clk 0:00:45.1]} 22.
Qxf6 {[%clk 0:01:51.2]} 22... Qe6 {[%clk 0:00:45]} 23. Qg5+ {[%clk 0:01:51.3]}
23... Kh8 {[%clk 0:00:42]} 24. Nd4 {[%clk 0:01:51.2]} 24... Qg6 {[%clk
0:00:28.9]} 25. Qxd5 {[%clk 0:01:50.1]} 25... Rg8 {[%clk 0:00:24.6]} 26. g3
{[%clk 0:01:44.6]} 26... Qg5 {[%clk 0:00:24.3]} 27. Qxf7 {[%clk 0:01:42]} 27...
Qg6 {[%clk 0:00:16.5]} 28. Qd5 {[%clk 0:01:36.5]} 28... Qg5 {[%clk 0:00:15.3]}
29. Nf5 {[%clk 0:01:36.7]} 29... Rf8 {[%clk 0:00:14.7]} 30. e4 {[%clk
0:01:33.1]} 30... Qd8 {[%clk 0:00:11.5]} 31. Qe5+ {[%clk 0:01:33.3]} 31... Kg8
{[%clk 0:00:09.8]} 32. Qg7# {[%clk 0:01:32.8]} 1-0

[Event "Early-Titled-Tuesday-Blitz-March-12-2024"]
[Site "Chess.com"]
[Date "2024.03.12"]
[Round "1"]
[White "alexrustemov"]
[Black "koncheto"]
[Result "1-0"]
[WhiteElo "2862"]
[BlackElo "2474"]
[TimeControl "180+1"]
[EndTime "8:05:51 PDT"]
[Termination "alexrustemov won by checkmate"]

1. d4 {[%clk 0:03:00.9]} 1... Nf6 {[%clk 0:02:59.3]} 2. c4 {[%clk 0:03:00.8]}
2... e6 {[%clk 0:02:59.8]} 3. Nf3 {[%clk 0:02:59.9]} 3... c5 {[%clk 0:03:00.7]}
4. d5 {[%clk 0:02:59.7]} 4... exd5 {[%clk 0:03:01.6]} 5. cxd5 {[%clk 0:03:00.5]}
5... d6 {[%clk 0:03:02.5]} 6. Nc3 {[%clk 0:03:01]} 6... g6 {[%clk 0:03:02.4]} 7.
h3 {[%clk 0:03:00.3]} 7... Bg7 {[%clk 0:03:02]} 8. e4 {[%clk 0:02:58.8]} 8...
O-O {[%clk 0:03:00.3]} 9. Bd3 {[%clk 0:02:58.7]} 9... b5 {[%clk 0:02:42.8]} 10.
Bxb5 {[%clk 0:02:57.9]} 10... Nxe4 {[%clk 0:02:38.7]} 11. Nxe4 {[%clk
0:02:58.8]} 11... Qa5+ {[%clk 0:02:36.3]} 12. Nfd2 {[%clk 0:02:53.9]} 12... Qxb5
{[%clk 0:02:30.5]} 13. Nxd6 {[%clk 0:02:52.6]} 13... Qa6 {[%clk 0:02:25.8]} 14.
N2c4 {[%clk 0:02:53.5]} 14... Nd7 {[%clk 0:02:06.2]} 15. O-O {[%clk 0:02:53.7]}
15... Nb6 {[%clk 0:01:55.4]} 16. Nxb6 {[%clk 0:02:53.3]} 16... axb6 {[%clk
0:01:54.6]} 17. Bg5 {[%clk 0:02:48.1]} 17... Bxb2 {[%clk 0:01:43.1]} 18. Rb1
{[%clk 0:02:38]} 18... Be5 {[%clk 0:01:34.4]} 19. Nxc8 {[%clk 0:02:35]} 19...
Rfxc8 {[%clk 0:01:08.1]} 20. d6 {[%clk 0:02:31.3]} 20... f6 {[%clk 0:01:07.4]}
21. Bh6 {[%clk 0:02:09.8]} 21... Qxa2 {[%clk 0:00:58]} 22. Rxb6 {[%clk 0:02:00]}
22... Rd8 {[%clk 0:00:49.7]} 23. Re1 {[%clk 0:01:54.9]} 23... Qe6 {[%clk
0:00:20]} 24. f4 {[%clk 0:01:50.3]} 24... Bd4+ {[%clk 0:00:20.4]} 25. Kh2 {[%clk
0:01:48.5]} 25... Qd5 {[%clk 0:00:21]} 26. Re7 {[%clk 0:01:42.8]} 26... Ra2
{[%clk 0:00:20.4]} 27. Qf1 {[%clk 0:01:33.8]} 27... Rxd6 {[%clk 0:00:14.5]} 28.
Rbb7 {[%clk 0:01:30.5]} 28... Rd8 {[%clk 0:00:04.6]} 29. Rg7+ {[%clk 0:01:30.1]}
29... Kh8 {[%clk 0:00:05.2]} 30. Rxh7+ {[%clk 0:01:30.3]} 30... Kg8 {[%clk
0:00:05.8]} 31. Rbg7+ {[%clk 0:01:30.2]} 31... Kf8 {[%clk 0:00:06.1]} 32. Rh8+
{[%clk 0:01:30.8]} 32... Qg8 {[%clk 0:00:05.7]} 33. Rhxg8# {[%clk 0:01:31.1]}
1-0

[Event "Early-Titled-Tuesday-Blitz-March-12-2024"]
[Site "Chess.com"]
[Date "2024.03.12"]
[Round "1"]
[White "crosky"]
[Black "Goryachkina"]
[Result "0-1"]
[WhiteElo "2311"]
[BlackElo "2691"]
[TimeControl "180+1"]
[EndTime "8:06:02 PDT"]
[Termination "Goryachkina won by resignation"]

1. d4 {[%clk 0:02:59.7]} 1... Nf6 {[%clk 0:02:58.4]} 2. Bg5 {[%clk 0:02:58.9]}
2... d5 {[%clk 0:02:54.4]} 3. Nd2 {[%clk 0:02:58]} 3... Bf5 {[%clk 0:02:52.5]}
4. Bxf6 {[%clk 0:02:15.4]} 4... gxf6 {[%clk 0:02:50.2]} 5. g3 {[%clk 0:02:14.4]}
5... e5 {[%clk 0:02:42.2]} 6. dxe5 {[%clk 0:01:56.9]} 6... fxe5 {[%clk
0:02:41.7]} 7. Bg2 {[%clk 0:01:57.8]} 7... Nc6 {[%clk 0:02:35.7]} 8. Ngf3 {[%clk
0:01:48]} 8... Bg7 {[%clk 0:02:31.7]} 9. Nh4 {[%clk 0:01:43.5]} 9... Bg6 {[%clk
0:02:31.2]} 10. O-O {[%clk 0:01:43]} 10... O-O {[%clk 0:02:27.5]} 11. Nxg6
{[%clk 0:01:38]} 11... hxg6 {[%clk 0:02:27.4]} 12. c4 {[%clk 0:01:24.2]} 12...
d4 {[%clk 0:02:16.5]} 13. h4 {[%clk 0:00:57.5]} 13... Ne7 {[%clk 0:01:54.1]} 14.
Ne4 {[%clk 0:00:49.4]} 14... Nf5 {[%clk 0:01:39.9]} 15. Qb3 {[%clk 0:00:45.2]}
15... Qe7 {[%clk 0:01:37.3]} 16. c5 {[%clk 0:00:40.7]} 16... b6 {[%clk
0:01:23.3]} 17. Ng5 {[%clk 0:00:34.7]} 17... Rad8 {[%clk 0:01:21.8]} 18. Rac1
{[%clk 0:00:24.6]} 18... Bf6 {[%clk 0:01:21.1]} 19. cxb6 {[%clk 0:00:20.3]}
19... cxb6 {[%clk 0:01:18.1]} 20. Ne4 {[%clk 0:00:20.3]} 20... Nd6 {[%clk
0:01:12.7]} 21. Nxd6 {[%clk 0:00:17.8]} 21... Rxd6 {[%clk 0:01:06]} 22. Qa3
{[%clk 0:00:18.4]} 22... Rfd8 {[%clk 0:01:03.9]} 23. Rc2 {[%clk 0:00:18.1]}
23... e4 {[%clk 0:01:02.8]} 24. Rfc1 {[%clk 0:00:16.8]} 24... d3 {[%clk
0:01:02.9]} 25. exd3 {[%clk 0:00:16.7]} 25... exd3 {[%clk 0:01:03]} 26. Rc7
{[%clk 0:00:17.1]} 26... Qe6 {[%clk 0:01:02.7]} 27. Qxa7 {[%clk 0:00:16.3]}
27... d2 {[%clk 0:01:01.3]} 0-1

[Event "Early-Titled-Tuesday-Blitz-March-12-2024"]
[Site "Chess.com"]
[Date "2024.03.12"]
[Round "1"]
[White "matagordo"]
[Black "Alex_Banzea"]
[Result "0-1"]
[WhiteElo "2238"]
[BlackElo "2629"]
[TimeControl "180+1"]
[EndTime "8:06:02 PDT"]
[Termination "Alex_Banzea won by resignation"]

1. d4 {[%clk 0:02:59.9]} 1... Nf6 {[%clk 0:02:57.9]} 2. Bf4 {[%clk 0:02:58.2]}
2... g6 {[%clk 0:02:58.6]} 3. Nc3 {[%clk 0:02:57.4]} 3... d5 {[%clk 0:02:59.2]}
4. e3 {[%clk 0:02:57.5]} 4... Bg7 {[%clk 0:02:59.5]} 5. h4 {[%clk 0:02:58.1]}
5... O-O {[%clk 0:03:00.2]} 6. h5 {[%clk 0:02:57.9]} 6... c5 {[%clk 0:02:58]} 7.
h6 {[%clk 0:02:43.6]} 7... Bh8 {[%clk 0:02:56.1]} 8. Nb5 {[%clk 0:02:43.7]} 8...
Nc6 {[%clk 0:02:47.5]} 9. Nc7 {[%clk 0:02:31.6]} 9... Rb8 {[%clk 0:02:37]} 10.
Na6 {[%clk 0:02:29.5]} 10... bxa6 {[%clk 0:02:34]} 11. Bxb8 {[%clk 0:02:23.8]}
11... Nxb8 {[%clk 0:02:34.9]} 12. c3 {[%clk 0:02:23.9]} 12... Qb6 {[%clk
0:02:26.3]} 13. Qb3 {[%clk 0:02:19.2]} 13... c4 {[%clk 0:02:26.4]} 14. Qxb6
{[%clk 0:02:19.3]} 14... axb6 {[%clk 0:02:27.3]} 15. f3 {[%clk 0:02:19.1]} 15...
Nc6 {[%clk 0:02:27.3]} 16. Kd2 {[%clk 0:02:14.9]} 16... Ne8 {[%clk 0:02:12.4]}
17. e4 {[%clk 0:02:10.8]} 17... e6 {[%clk 0:02:06.5]} 18. Ne2 {[%clk 0:02:09.1]}
18... Nd6 {[%clk 0:02:05.1]} 19. exd5 {[%clk 0:02:07.2]} 19... exd5 {[%clk
0:02:04.4]} 20. g4 {[%clk 0:02:06.5]} 20... Bf6 {[%clk 0:02:02.2]} 21. Bg2
{[%clk 0:01:44.6]} 21... Be6 {[%clk 0:01:54.9]} 22. Rae1 {[%clk 0:01:41.8]}
22... b5 {[%clk 0:01:53.4]} 23. Kc2 {[%clk 0:01:40.5]} 23... a5 {[%clk 0:01:50]}
24. a3 {[%clk 0:01:38.7]} 24... b4 {[%clk 0:01:44.2]} 25. axb4 {[%clk
0:01:39.6]} 25... axb4 {[%clk 0:01:45.1]} 26. Ra1 {[%clk 0:01:36.3]} 26... b3+
{[%clk 0:01:38.9]} 27. Kd1 {[%clk 0:01:35.4]} 27... Nb5 {[%clk 0:01:15.6]} 28.
Ra6 {[%clk 0:01:29.9]} 28... Ncxd4 {[%clk 0:01:15.3]} 29. cxd4 {[%clk
0:01:28.4]} 29... Nxd4 {[%clk 0:01:16.2]} 30. Nc3 {[%clk 0:01:12.3]} 30... Nc2
{[%clk 0:01:09.1]} 31. f4 {[%clk 0:01:02.7]} 31... Ne3+ {[%clk 0:01:08.6]} 32.
Ke2 {[%clk 0:00:58.6]} 32... Nxg2 {[%clk 0:01:09.5]} 33. Kf3 {[%clk 0:00:50.1]}
33... Bxc3 {[%clk 0:01:00]} 34. bxc3 {[%clk 0:00:47.1]} 34... d4 {[%clk
0:01:00.5]} 35. cxd4 {[%clk 0:00:43.3]} 35... c3 {[%clk 0:00:57.6]} 36. Kxg2
{[%clk 0:00:38.4]} 36... Bd5+ {[%clk 0:00:57.5]} 37. Kh2 {[%clk 0:00:36.1]}
37... Bxh1 {[%clk 0:00:58.4]} 0-1